bitfinex-derivatives/quotes_BNBF0:USTF0_20250406
["timestamp","ask_amount","ask_price","bid_price","bid_amount"]
[1743926702844,0.59363722,589.95,589.39,0.065]
[1743926703039,0.59363722,589.94,589.39,0.065]
[1743926703242,0.59363722,589.93,589.39,0.065]
[1743926703446,0.59363722,589.92,589.39,0.065]
[1743926703644,0.59363722,589.91,589.39,0.065]
[1743926703841,0.59363722,589.9,589.39,0.065]
[1743926704043,0.59363722,589.89,589.39,0.065]
[1743926704244,1.82840333,589.88,589.39,0.065]
[1743926704544,1.82840333,589.87,589.39,0.065]
[1743926704847,0.59363722,589.86,589.39,0.065]
[1743926705048,1.23476611,589.87,589.39,0.065]
[1743926705248,0.59375128,589.86,589.39,0.065]
[1743926705549,1.23476611,589.87,589.39,0.065]
[1743926706149,0.59375025,589.86,589.39,0.065]
[1743926706344,1.23476611,589.87,589.39,0.065]
[1743926706748,0.59381899,589.85,589.39,0.065]
[1743926707049,1.23476611,589.87,589.39,0.065]
[1743926707549,0.5938748,589.86,589.39,0.065]
[1743926707845,0.59390498,589.85,589.39,0.065]
[1743926708150,1.23476611,589.87,589.39,0.065]
[1743926708349,1.82876319,589.86,589.39,0.065]
[1743926708550,0.59399708,589.85,589.39,0.065]
[1743926708851,1.23476611,589.84,589.39,0.065]
[1743926709349,1.23476611,589.83,589.39,0.065]
[1743926709849,1.23476611,589.82,589.39,0.065]
[1743926710349,1.23476611,589.81,589.39,0.065]
[1743926710746,1.23476611,589.8,589.39,0.065]
[1743926711050,1.23476611,589.79,589.39,0.065]
[1743926711553,0.407,590.03,589.39,0.065]
[1743926711746,0.59404601,590.02,589.39,0.065]
[1743926711947,0.59404601,590.01,589.39,0.065]
[1743926712145,0.59404365,590.0,589.39,0.065]
[1743926712351,0.59404365,589.99,589.39,0.065]
[1743926712652,1.82964273,589.98,589.39,0.065]
[1743926712852,0.59404365,589.97,589.39,0.065]
[1743926713051,1.82964273,589.96,589.39,0.065]
[1743926713254,0.59404365,589.95,589.39,0.065]
[1743926713452,0.59404365,589.94,589.39,0.065]
[1743926713653,1.23559908,589.96,589.39,0.065]
[1743926713853,1.82964336,589.95,589.39,0.065]
[1743926714156,0.59404428,589.94,589.39,0.065]
[1743926714350,1.23559908,589.93,589.39,0.065]
[1743926714953,1.23559908,589.92,589.39,0.065]
[1743926715453,1.23559908,589.92,589.4,0.2875826]
[1743926716156,1.23559908,589.91,589.4,0.2875826]
[1743926716355,1.23559908,589.9,589.4,0.2875826]
[1743926717155,0.518,589.99,589.4,0.2875826]
[1743926717357,1.82297519,589.98,589.4,0.2875826]
[1743926717556,0.58828738,589.97,589.4,0.2875826]
[1743926717757,1.82297519,589.96,589.4,0.2875826]
[1743926717957,0.58828738,589.95,589.4,0.2875826]
[1743926718153,1.23468781,589.96,589.4,0.2875826]
[1743926718355,0.58827216,589.95,589.4,0.2875826]
[1743926718553,1.23468781,589.94,589.4,0.2875826]
[1743926718758,1.23468781,589.94,589.39,0.359964]
[1743926718958,1.23468781,589.93,589.4,0.28758002]
[1743926719659,1.23468781,589.92,589.4,0.28758002]
[1743926720561,1.23468781,589.91,589.4,0.28758002]
[1743926720762,1.23468781,589.91,589.39,0.359964]
[1743926721063,1.23468781,589.91,589.39,0.294964]
[1743926721257,1.23468781,589.91,589.4,0.2875857]
[1743926721561,0.521,589.9,589.39,0.294964]
[1743926721761,1.23468781,589.89,589.39,0.294964]
[1743926722162,1.23468781,589.89,589.19,1.26816657]
[1743926722360,1.23468781,589.89,589.25,0.28758933]
[1743926722661,0.521,589.9,589.38,0.29499275]
[1743926722961,0.521,589.9,589.39,0.28758933]
[1743926723161,0.521,589.9,589.25,0.28758933]
[1743926723361,0.521,589.9,589.13,1.26816657]
[1743926723560,0.521,589.9,589.25,0.28758871]
[1743926724062,1.23442823,589.89,589.26,0.28758869]
[1743926724260,1.23442823,589.89,589.25,0.28758869]
[1743926724457,1.23442823,589.89,589.26,0.28758869]
[1743926724659,1.23442823,589.88,589.27,0.29499275]
[1743926724862,1.23442823,589.88,589.27,0.58258144]
[1743926725162,1.23442823,589.87,589.28,0.28758869]
[1743926725363,0.521,589.9,589.28,0.28758869]
[1743926725562,0.521,589.9,589.27,0.29499275]
[1743926725762,0.521,589.9,589.28,0.28759051]
[1743926726057,1.23440313,589.89,589.28,0.28759051]
[1743926726662,1.23440313,589.88,589.28,0.28759051]
[1743926726962,0.521,589.9,589.28,0.28759051]
[1743926727362,1.23440989,589.89,589.28,0.28759051]
[1743926727760,1.23440989,589.88,589.28,0.28759051]
[1743926728266,0.521,589.9,589.28,0.28759051]
[1743926728559,0.521,589.9,589.29,0.28759051]
[1743926728760,1.23441568,589.89,589.3,0.28759051]
[1743926728964,1.23441568,589.89,589.27,0.28759051]
[1743926729165,0.521,589.9,589.28,0.28759051]
[1743926729462,0.521,589.9,589.29,0.28759051]
[1743926729665,0.521,589.9,589.28,0.28759051]
[1743926729866,1.234413,589.89,589.29,0.28759051]
[1743926730059,1.234413,589.89,589.28,0.28759051]
[1743926730260,1.234413,589.88,589.28,0.28759051]
[1743926730566,0.521,589.9,589.28,0.28759051]
[1743926731066,0.521,589.9,589.29,1.26816657]
[1743926731265,1.23446343,589.89,589.3,0.28759051]
[1743926732160,0.521,589.9,589.3,0.28759051]
[1743926733262,0.29488027,590.34,589.3,0.28759051]
[1743926733263,0.29488027,590.34,589.31,1.26816657]
[1743926733567,1.8228877,590.33,589.32,0.28759051]
[1743926733766,0.58825902,590.32,589.32,0.28759051]
[1743926733969,0.58825902,590.31,589.32,0.28759051]
[1743926734166,0.58825902,590.3,589.32,0.28759051]
[1743926734364,1.8228877,590.29,589.32,0.28759051]
[1743926734566,0.58825902,590.28,589.32,0.28759051]
[1743926734770,0.58825902,590.27,589.32,0.28759051]
[1743926735070,0.58825902,590.26,589.32,0.28759051]
[1743926735271,0.58825902,590.25,589.32,0.28759051]
[1743926735471,0.58825902,590.24,589.32,0.28759051]
[1743926735670,1.8228877,590.23,589.37,1.26816657]
[1743926735867,0.58825902,590.22,589.38,0.28759051]
[1743926736071,0.58825902,590.21,589.38,0.28759051]
[1743926736273,1.8228877,590.2,589.38,0.28759051]
[1743926736471,1.8228877,590.19,589.38,0.28759051]
[1743926736668,0.58825902,590.18,589.38,0.28759051]
[1743926736873,0.58825902,590.17,589.38,0.28759051]
[1743926737173,1.8228877,590.16,589.38,0.28759051]
[1743926737373,0.58825902,590.15,589.38,0.28759051]
[1743926737573,1.8228877,590.14,589.38,0.28759051]
[1743926737774,0.58825902,590.13,589.38,0.28759051]
[1743926737973,0.58825902,590.12,589.38,0.28759051]
[1743926738172,0.58825902,590.11,589.38,0.28759051]
[1743926738370,1.8228877,590.1,589.49,1.26816657]
[1743926738574,0.58825902,590.09,589.5,0.28759051]
[1743926738775,0.58825902,590.08,589.5,0.28759051]
[1743926738974,0.58825902,590.07,589.5,0.28759051]
[1743926739175,1.23462868,590.08,589.5,0.28759051]
[1743926739375,0.58231893,590.07,589.5,0.28759051]
[1743926739576,1.81694761,590.06,589.5,0.28759051]
[1743926739777,1.81694761,590.05,589.5,0.28759051]
[1743926740079,0.58231893,590.04,589.5,0.28759051]
[1743926740272,0.58231893,590.03,589.51,0.28759051]
[1743926740479,1.23462868,590.03,589.47,0.28759051]
[1743926740774,1.23462868,590.03,589.48,0.28759051]
[1743926741074,1.23462868,590.02,589.49,0.28759051]
[1743926741278,1.23462868,590.02,589.47,0.28759051]
[1743926741574,1.23462868,590.01,589.47,0.28759051]
[1743926741778,1.23462868,590.01,589.42,0.28759051]
[1743926741975,1.23462868,590.0,589.42,0.28759051]
[1743926742179,0.58217391,589.99,589.42,0.28759051]
[1743926742373,1.23462868,590.0,589.42,0.28759051]
[1743926742577,1.81680139,589.99,589.42,0.28759051]
[1743926742879,0.58216476,589.98,589.42,0.28759051]
[1743926743080,1.23462868,589.97,589.42,0.28759051]
[1743926743680,1.23462868,589.96,589.42,0.28759051]
[1743926744078,1.23462868,589.95,589.43,0.28758304]
[1743926744279,1.23462868,589.94,589.44,0.28758304]
[1743926744579,0.58208335,589.93,589.45,0.28758304]
[1743926744779,0.58208335,589.92,589.45,0.28758304]
[1743926744980,1.23462868,589.91,589.46,0.28758304]
[1743926745176,1.23462868,589.9,589.36,0.28758304]
[1743926745575,1.23462868,589.9,589.35,0.2949565]
[1743926745780,1.23462868,589.9,589.36,0.28761596]
[1743926746076,1.23462868,589.89,589.36,0.28761596]
[1743926746480,1.23462868,589.89,589.33,0.28761596]
[1743926746680,1.23462868,589.88,589.33,0.28761596]
[1743926747281,1.23462868,589.87,589.33,0.28761596]
[1743926747483,1.23462868,589.87,589.32,0.29499775]
[1743926747683,1.23462868,589.87,589.33,0.28761618]
[1743926747884,0.29500901,590.28,589.33,0.28761618]
[1743926748078,0.58182544,590.27,589.33,0.28761618]
[1743926748276,1.23224173,590.27,589.33,0.28761618]
[1743926748481,0.58181447,590.26,589.33,0.28761618]
[1743926748677,0.58181447,590.25,589.33,0.28761618]
[1743926748882,1.23224173,590.27,589.33,0.28761618]
[1743926748883,0.58181447,590.24,589.33,0.28761618]
[1743926749078,1.8140562,590.23,589.32,0.29499775]
[1743926749378,0.58181447,590.22,589.33,0.28761577]
[1743926749577,0.58181447,590.21,589.25,0.28761577]
[1743926749882,0.58181447,590.2,589.26,0.28761577]
[1743926750082,1.23224173,590.21,589.25,0.28761577]
[1743926750083,0.58181447,590.19,589.25,0.28761577]
[1743926750382,1.8140562,590.18,589.26,0.28761577]
[1743926750584,0.58181447,590.17,589.26,0.29496775]
[1743926750781,0.58181447,590.16,589.27,0.28761643]
[1743926750981,1.8140562,590.15,589.27,0.28761643]
[1743926751182,0.58181447,590.14,589.27,0.28761643]
[1743926751378,1.8140562,590.13,589.27,0.28761643]
[1743926751582,0.58181447,590.12,589.27,0.28761643]
[1743926751783,0.58171312,590.11,589.27,0.28761643]
[1743926751986,0.58171427,590.1,589.27,0.28761643]
[1743926752178,0.58171427,590.09,589.27,0.28761643]
[1743926752379,1.813956,590.08,589.25,0.28761643]
[1743926752684,0.58171427,590.07,589.26,0.58259595]
[1743926752885,1.813956,590.06,589.27,0.2876157]
[1743926753085,0.58171427,590.05,589.27,0.2876157]
[1743926753379,1.813956,590.04,589.27,0.2876157]
[1743926753582,0.58171427,590.03,589.27,0.2876157]
[1743926753879,0.58171427,590.02,589.27,0.2876157]
[1743926754083,0.58171427,590.01,589.27,0.2876157]
[1743926754282,0.58171427,590.0,589.27,0.2876157]
[1743926754480,0.58171427,589.99,589.27,0.2876157]
[1743926754679,0.58171427,589.98,589.27,0.2876157]
[1743926754884,0.58171427,589.97,589.27,0.2876157]
[1743926755085,0.58171427,589.96,589.27,0.2876157]
[1743926755285,1.813956,589.95,589.27,0.2876157]
[1743926755484,0.58171427,589.94,589.25,0.2876157]
[1743926755681,0.58171427,589.93,589.26,0.29499525]
[1743926755886,0.58171427,589.92,589.27,0.2876157]
[1743926756086,1.23224173,589.93,589.27,0.2876157]
[1743926756283,0.5818967,589.92,589.27,0.2876157]
[1743926756487,1.23224173,589.93,589.28,0.28761541]
[1743926756688,1.81409571,589.92,589.27,0.28761541]
[1743926756888,1.23224173,589.92,589.27,0.28761541]
[1743926757289,1.23224173,589.91,589.27,0.28761541]
[1743926757885,1.23224173,589.9,589.27,0.28761541]
[1743926758391,1.23224173,589.89,589.25,0.28761541]
[1743926758690,1.23224173,589.89,589.26,0.58262192]
[1743926758990,1.23224173,589.88,589.27,0.28761541]
[1743926759686,1.23224173,589.87,589.27,0.28761541]
[1743926760292,0.29500901,590.31,589.27,0.28761541]
[1743926760491,0.5818274,590.3,589.27,0.28761541]
[1743926760791,1.81409075,590.29,589.28,0.28761538]
[1743926760989,0.58182749,590.28,589.27,0.28761538]
[1743926761189,0.58182749,590.27,589.28,0.28761538]
[1743926761486,1.81409084,590.26,589.29,0.28761538]
[1743926761685,0.58182749,590.25,589.27,0.28761538]
[1743926761885,0.58182749,590.24,589.27,0.28761538]
[1743926762091,1.81409084,590.23,589.27,0.28761538]
[1743926762291,0.58180336,590.22,589.27,0.28761538]
[1743926762590,1.81406671,590.21,589.27,0.28761538]
[1743926762789,0.58180336,590.2,589.27,0.28761538]
[1743926762986,0.58180336,590.19,589.27,0.28761538]
[1743926763191,1.81406671,590.18,589.27,0.28761538]
[1743926763391,0.58180336,590.17,589.27,0.28761538]
[1743926763591,0.58180336,590.16,589.27,0.28761538]
[1743926763792,0.58180336,590.15,589.27,0.28761538]
[1743926763988,0.58180336,590.14,589.27,0.28761538]
[1743926764190,0.58190119,590.13,589.27,0.28761538]
[1743926764489,0.58190119,590.12,589.28,0.28761538]
[1743926764695,0.58190119,590.11,589.29,0.28761538]
[1743926764888,0.58190119,590.1,589.27,0.28761538]
[1743926765096,1.81416454,590.09,589.28,0.28761538]
[1743926765289,0.58190119,590.08,589.27,0.28761538]
[1743926765490,0.58190119,590.07,589.27,0.28761538]
[1743926765694,0.58190119,590.06,589.27,0.28761538]
[1743926765895,0.58190119,590.05,589.27,0.28761538]
[1743926766095,0.58190119,590.04,589.27,0.28761538]
[1743926766291,0.58190119,590.03,589.27,0.28761538]
[1743926766491,0.58190119,590.02,589.27,0.28761538]
[1743926766697,1.81416454,590.01,589.27,0.28761538]
[1743926766897,0.58190119,590.0,589.27,0.28761538]
[1743926767097,1.23226335,590.01,589.27,0.28761538]
[1743926767098,0.58190119,589.99,589.27,0.28761538]
[1743926767297,1.81416454,589.98,589.27,0.28761538]
[1743926767492,0.58190119,589.97,589.26,0.29498275]
[1743926767697,1.81416454,589.96,589.27,0.28761538]
[1743926767996,1.23226335,589.96,589.27,0.28761538]
[1743926768494,1.23226335,589.95,589.27,0.28761538]
[1743926768699,1.23226335,589.95,589.26,0.29498275]
[1743926768894,1.23226335,589.94,589.27,0.28759666]
[1743926769599,1.23226335,589.93,589.27,0.28759666]
[1743926770101,1.23226335,589.92,589.27,0.28759666]
[1743926770302,1.23226335,589.92,589.09,1.26816657]
[1743926770501,1.23226335,589.92,589.26,0.294979]
[1743926770704,0.365,590.28,589.26,0.294979]
[1743926770894,1.81470719,590.27,589.27,0.2875648]
[1743926771096,0.58202116,590.26,589.27,0.2875648]
[1743926771304,1.81470719,590.25,589.27,0.2875648]
[1743926771501,0.58202116,590.24,589.27,0.2875648]
[1743926771802,0.58202116,590.23,589.27,0.2875648]
[1743926772004,0.58202116,590.22,589.27,0.2875648]
[1743926772305,1.81470719,590.21,589.28,0.28756157]
[1743926772504,0.58202116,590.2,589.27,0.28756157]
[1743926772698,0.58202116,590.19,589.27,0.28756157]
[1743926773003,0.58202116,590.18,589.27,0.28756157]
[1743926773198,1.81470719,590.17,589.27,0.28756157]
[1743926773502,0.58202116,590.16,589.28,0.28756157]
[1743926773699,0.58202116,590.15,589.27,0.28756157]
[1743926773901,1.81470719,590.14,589.28,0.28756125]
[1743926774099,0.58202116,590.13,589.27,0.28756125]
[1743926774301,1.81470719,590.12,589.28,0.28756125]
[1743926774501,0.58202116,590.11,589.29,0.28756125]
[1743926774698,1.81470719,590.1,589.3,0.28756125]
[1743926774897,0.58202116,590.09,589.31,0.28756125]
[1743926775103,0.58202116,590.08,589.32,0.28756125]
[1743926775302,0.58202116,590.07,589.33,0.28756125]
[1743926775502,0.58202116,590.06,589.27,0.28756125]
[1743926775800,1.81470719,590.05,589.28,0.28756125]
[1743926776006,1.23268603,590.05,589.46,1.26816657]
[1743926776200,1.23268603,590.04,589.47,0.28756125]
[1743926776505,1.23268603,590.03,589.47,0.28756125]
[1743926777007,1.23268603,590.02,589.47,0.28756125]
[1743926777408,0.344,590.19,589.47,0.28756125]
[1743926777604,0.58183963,590.18,589.47,0.28756125]
[1743926777808,0.58183963,590.17,589.47,0.28756125]
[1743926778108,1.81413317,590.16,589.47,0.28756125]
[1743926778307,0.58183963,590.15,589.47,0.28756125]
[1743926778509,0.58183963,590.14,589.47,0.28756125]
[1743926778803,1.81413317,590.13,589.48,0.28756125]
[1743926779008,1.81413317,590.12,589.39,0.28756125]
[1743926779203,0.58183963,590.11,589.4,0.28756125]
[1743926779502,1.81413317,590.1,589.41,0.28756125]
[1743926779708,0.58183963,590.09,589.42,0.28756125]
[1743926779908,0.58183963,590.08,589.39,0.28756125]
[1743926780109,0.58183963,590.07,589.39,0.28756125]
[1743926780310,1.23229354,590.07,589.39,0.28756125]
[1743926780711,1.23229354,590.07,589.36,0.28756125]
[1743926781314,1.23229354,590.06,589.36,0.28756125]
[1743926781711,1.23229354,590.06,589.35,1.26816657]
[1743926781907,1.23229354,590.06,589.36,0.28754339]
[1743926782105,1.23229354,590.05,589.36,0.28754339]
[1743926782407,1.23229354,590.04,589.36,0.28754339]
[1743926782805,1.23229354,590.03,589.36,0.28754339]
[1743926783206,1.23229354,590.03,589.33,0.294929]
[1743926783207,0.344,590.19,589.34,0.28754339]
[1743926783410,0.58164729,590.18,589.34,0.28754339]
[1743926783609,0.58164729,590.17,589.34,0.28754339]
[1743926783907,1.81354472,590.16,589.34,0.28754339]
[1743926784106,0.58164729,590.15,589.33,0.294929]
[1743926784311,1.81354472,590.14,589.34,0.28754217]
[1743926784613,1.81354472,590.13,589.34,0.28754217]
[1743926784813,0.58164729,590.12,589.34,0.28754217]
[1743926785013,1.81354472,590.11,589.34,0.28754217]
[1743926785208,1.23189743,590.11,589.34,0.28754217]
[1743926785413,1.23189743,590.11,589.29,0.28754217]
[1743926785613,0.344,590.19,589.33,0.29492525]
[1743926785816,0.58164075,590.18,589.34,0.28754217]
[1743926786114,0.344,590.19,589.34,0.62690484]
[1743926786309,0.344,590.19,589.35,0.28754217]
[1743926786510,1.23170702,590.18,589.35,0.28754217]
[1743926786913,1.23170702,590.17,589.36,0.065]
[1743926787112,1.23170702,590.17,589.37,0.28754217]
[1743926787310,1.23170702,590.16,589.37,0.28754217]
[1743926787615,1.23170702,590.15,589.37,0.28754217]
[1743926788109,0.344,590.19,589.37,0.28754217]
[1743926788514,0.344,590.19,589.45,1.26816657]
[1743926788713,1.23118146,590.18,589.46,0.28754217]
[1743926788915,1.23118146,590.17,589.46,0.28754217]
[1743926789812,1.23118146,590.16,589.46,0.28754217]
[1743926790515,0.344,590.19,589.46,0.28754217]
[1743926790915,1.23089372,590.18,589.46,0.28754217]
[1743926791110,1.23089372,590.18,589.44,0.28754217]
[1743926791313,0.344,590.19,589.45,0.28754217]
[1743926791511,0.344,590.19,589.43,1.26816657]
[1743926791512,0.344,590.19,589.44,0.28754217]
[1743926791714,0.344,590.19,589.45,0.28754217]
[1743926791910,0.344,590.19,589.46,0.28754217]
[1743926792115,0.344,590.19,589.44,0.28754217]
[1743926792311,0.344,590.19,589.45,0.28754217]
[1743926792515,0.344,590.19,589.44,0.28754217]
[1743926793012,0.915,590.19,589.44,0.28754217]
[1743926794117,0.915,590.19,589.46,1.26816657]
[1743926794311,0.915,590.19,589.47,0.28754217]
[1743926795819,0.915,590.19,589.46,1.26816657]
[1743926796018,0.915,590.19,589.48,0.28744044]
[1743926796219,0.915,590.19,589.49,0.28744044]
[1743926796615,0.915,590.19,589.5,0.28744044]
[1743926796816,0.915,590.19,589.51,0.28744044]
[1743926797016,0.915,590.19,589.37,0.28744044]
[1743926797322,0.915,590.19,589.38,0.62678008]
[1743926797622,0.915,590.19,589.39,0.33933388]
[1743926797823,0.915,590.19,589.4,0.28744027]
[1743926798022,0.915,590.19,589.41,0.33932237]
[1743926798219,0.915,590.19,589.42,0.28744027]
[1743926798522,0.915,590.19,589.43,0.33931085]
[1743926798723,0.915,590.19,589.44,0.28744027]
[1743926798921,0.915,590.19,589.44,0.62674537]
[1743926799222,0.915,590.19,589.45,0.28744027]
[1743926800219,0.915,590.19,589.46,0.28744027]
[1743926800418,0.915,590.19,589.44,0.3393051]
[1743926800419,0.915,590.19,589.45,0.28744027]
[1743926800618,0.915,590.19,589.46,0.28744027]
[1743926800820,0.915,590.19,589.44,0.3393051]
[1743926801021,0.915,590.19,589.45,0.28743949]
[1743926801223,0.915,590.19,589.46,0.28743949]
[1743926801424,0.915,590.19,589.45,0.28743949]
[1743926801620,0.915,590.19,589.44,0.3393051]
[1743926801823,0.915,590.19,589.45,0.2874395]
[1743926802031,0.915,590.19,589.46,0.2874395]
[1743926802227,0.915,590.19,589.47,0.2874395]
[1743926802431,0.915,590.19,589.48,0.2874395]
[1743926802631,0.915,590.19,589.45,0.2874395]
[1743926802832,0.915,590.19,589.46,0.2874395]
[1743926803030,0.915,590.19,589.47,0.2874395]
[1743926803228,0.915,590.19,589.48,0.2874395]
[1743926803428,0.915,590.19,589.44,0.3393051]
[1743926803429,0.915,590.19,589.49,0.2874395]
[1743926803731,0.915,590.19,589.5,0.2874395]
[1743926803931,0.915,590.19,589.51,1.55560607]
[1743926804232,0.915,590.19,589.52,0.2874395]
[1743926806033,0.915,590.19,589.51,1.26816657]
[1743926806233,0.915,590.19,589.53,0.2874399]
[1743926806429,0.915,590.19,589.51,1.26816657]
[1743926806430,0.915,590.19,589.54,0.2874399]
[1743926806630,0.915,590.19,589.52,0.2874399]
[1743926806831,0.915,590.19,589.53,0.28744835]
[1743926807028,0.915,590.19,589.52,0.28744835]
[1743926807934,0.915,590.19,589.53,0.28745594]
[1743926808129,0.915,590.19,589.54,0.28745594]
[1743926808329,0.915,590.19,589.52,0.28745594]
[1743926808532,0.915,590.19,589.53,0.28745594]
[1743926808831,0.915,590.19,589.54,0.28745594]
[1743926809029,0.915,590.19,589.52,0.28745594]
[1743926809233,0.915,590.19,589.53,0.28745594]
[1743926809429,0.915,590.19,589.52,0.28745594]
[1743926809729,0.915,590.19,589.53,0.28745594]
[1743926810238,0.915,590.19,589.54,0.28745594]
[1743926810533,0.915,590.19,589.55,0.28745594]
[1743926810835,0.915,590.19,589.56,0.28745594]
[1743926811035,0.915,590.19,589.57,0.28745594]
[1743926811236,0.915,590.19,589.53,0.28745594]
[1743926811432,0.915,590.19,589.58,0.28745594]
[1743926811631,0.915,590.19,589.59,0.28745594]
[1743926811834,0.915,590.19,589.53,0.28745594]
[1743926812031,0.915,590.19,589.54,0.28745594]
[1743926812335,0.915,590.19,589.58,1.26816657]
[1743926812533,0.915,590.19,589.59,0.28745594]
[1743926814435,0.915,590.19,589.57,0.28745594]
[1743926814636,0.915,590.19,589.58,0.28745594]
[1743926814836,0.915,590.19,589.57,0.28745594]
[1743926816335,0.915,590.19,589.58,0.28745152]
[1743926816537,0.915,590.19,589.59,1.26816657]
[1743926816738,0.915,590.19,589.59,1.55561809]
[1743926816938,0.915,590.19,589.6,0.28745152]
[1743926817438,0.915,590.19,589.61,0.287451]
[1743926817638,0.915,590.19,589.62,0.287451]
[1743926817832,0.915,590.19,589.6,0.287451]
[1743926818137,0.915,590.19,589.61,0.287451]
[1743926818338,0.915,590.19,589.6,0.287451]
[1743926819035,0.915,590.19,589.61,0.287451]
[1743926819238,0.915,590.19,589.57,0.287451]
[1743926819438,0.915,590.19,589.58,0.287451]
[1743926819639,0.915,590.19,589.59,0.287451]
[1743926819935,0.915,590.19,589.6,0.287451]
[1743926820139,0.915,590.19,589.57,0.287451]
[1743926821840,0.915,590.19,589.58,0.287451]
[1743926822134,0.915,590.19,589.59,0.287451]
[1743926822335,0.915,590.19,589.57,0.287451]
[1743926822535,0.915,590.19,589.6,0.287451]
[1743926822736,0.915,590.19,589.61,0.28744484]
[1743926823038,0.915,590.19,589.62,0.28744484]
[1743926823237,0.915,590.19,589.57,0.28744484]
[1743926823436,0.915,590.19,589.58,0.28744484]
[1743926823636,0.915,590.19,589.56,1.56301186]
[1743926823637,0.915,590.19,589.57,0.28744484]
[1743926823839,0.915,590.19,589.62,1.26816657]
[1743926824040,0.915,590.19,589.63,0.28744484]
[1743926824235,0.915,590.19,589.62,1.26816657]
[1743926824439,0.915,590.19,589.63,0.28740936]
[1743926825942,0.915,590.19,589.64,0.28741758]
[1743926826135,0.915,590.19,589.63,0.28741758]
[1743926826338,0.915,590.19,589.77,1.26816657]
[1743926826537,0.915,590.19,589.78,0.28741758]
[1743926826741,1.81049128,590.44,589.78,0.28741758]
[1743926826941,0.58061455,590.43,589.78,0.28741758]
[1743926827138,0.58061455,590.42,589.78,0.28741758]
[1743926827343,1.81049128,590.41,589.78,0.28741758]
[1743926827637,0.58061455,590.4,589.77,1.26816657]
[1743926827837,1.81049128,590.39,589.78,0.28741722]
[1743926828142,1.22987673,590.39,589.78,0.28741722]
[1743926828343,1.22987673,590.39,589.72,0.28741722]
[1743926828537,1.81088148,590.38,589.73,0.28741722]
[1743926828742,1.22987673,590.38,589.74,0.28741722]
[1743926828936,1.22987673,590.38,589.72,0.28741722]
[1743926829139,1.81098152,590.37,589.73,0.28741722]
[1743926829337,1.65287673,590.37,589.72,0.28741722]
[1743926829642,1.22987673,590.36,589.73,0.28741722]
[1743926829841,1.22987673,590.36,589.72,0.28741722]
[1743926830041,0.533,590.35,589.73,0.28741722]
[1743926830242,1.22987673,590.34,589.72,0.28741722]
[1743926830541,0.533,590.35,589.72,0.28741722]
[1743926830743,0.533,590.35,589.71,1.26816657]
[1743926830943,0.533,590.35,589.72,0.28741847]
[1743926831845,1.23112366,590.34,589.73,0.28741847]
[1743926832045,1.23112366,590.34,589.68,0.28741847]
[1743926832345,1.23112366,590.34,589.69,0.28741847]
[1743926832541,1.23112366,590.34,589.68,0.28741847]
[1743926832743,1.23112366,590.33,589.68,0.28741847]
[1743926833446,1.23112366,590.32,589.66,0.28741847]
[1743926833647,1.23112366,590.32,589.67,0.58221755]
[1743926833846,1.23112366,590.31,589.68,0.28741847]
[1743926834043,1.23112366,590.31,589.67,0.29479908]
[1743926834247,1.23112366,590.3,589.68,0.28742272]
[1743926834943,0.533,590.35,589.68,0.28742272]
[1743926835147,0.58147351,590.34,589.68,0.28742272]
[1743926835346,0.533,590.35,589.68,0.28742272]
[1743926835544,0.58155463,590.34,589.68,0.28742272]
[1743926835749,1.81327291,590.33,589.69,0.28742561]
[1743926835947,0.58152277,590.32,589.68,0.28742561]
[1743926836144,1.23171828,590.33,589.69,0.28742561]
[1743926836445,1.81333569,590.32,589.7,0.28742561]
[1743926836644,1.23171828,590.32,589.67,0.29480158]
[1743926836844,1.23171828,590.32,589.68,0.28742561]
[1743926837145,1.81342945,590.31,589.68,0.28742561]
[1743926837349,1.23171828,590.31,589.68,0.28742561]
[1743926837548,1.23171828,590.3,589.68,0.28742561]
[1743926838149,1.23171828,590.29,589.68,0.28742561]
[1743926838549,1.23171828,590.28,589.68,0.28742561]
[1743926839252,1.23171828,590.27,589.68,0.28742561]
[1743926839451,1.23171828,590.27,589.69,0.28742561]
[1743926839653,0.533,590.35,589.65,1.26816657]
[1743926839654,1.23171828,590.26,589.7,0.28742561]
[1743926839948,1.23171828,590.26,589.71,0.28742561]
[1743926840144,0.533,590.35,589.68,0.28742561]
[1743926840350,0.58189959,590.34,589.69,0.28742561]
[1743926840548,0.58189959,590.33,589.67,0.29480782]
[1743926840748,0.58189959,590.32,589.68,0.28743246]
[1743926840947,0.58189959,590.31,589.68,0.28743246]